lending/lending_fUSD_20240512
["ID","MTS","AMOUNT","RATE_DAILY","PERIOD"]
[326836694,1715491839269,-280.87092008,0.00014737,2]
[326836695,1715491839279,-615.545332,0.00014747,2]
[326836696,1715491839289,-556.502884,0.00014747,2]
[326836697,1715491839299,-191.873102,0.00014747,2]
[326836698,1715491839310,-9150.17278152,0.00014809,2]
[326836699,1715491839320,-6728.4480929,0.0001492,2]
[326836700,1715491839330,-7461.0021087,0.0001492,2]
[326836701,1715491839340,-1560.140159,0.0001492,2]
[326836702,1715491839351,-615.545332,0.00014927,2]
[326836703,1715491839361,-556.502884,0.00014927,2]
[326836704,1715491839371,-165.049,0.00014931,2]
[326836705,1715491839382,-613.853,0.00014931,2]
[326836706,1715491839393,-812.876,0.00014931,2]
[326836707,1715491839403,-424.747,0.00014931,2]
[326836708,1715491839414,-439.993,0.00014931,2]
[326836709,1715491839424,-151.239,0.00014931,2]
[326836710,1715491839435,-1652.872,0.00014931,2]
[326836711,1715491839445,-2422.08,0.00014931,2]
[326836712,1715491839455,-152.473,0.00014931,2]
[326836713,1715491839465,-216.0,0.00014931,2]
[326836714,1715491839475,-3168.918,0.00014931,2]
[326836715,1715491839486,-1140.588,0.00014931,2]
[326836716,1715491839496,-479.807,0.00014931,2]
[326836717,1715491839506,-5911.0,0.00014931,2]
[326836718,1715491839515,-1404.123,0.00014931,2]
[326836719,1715491839526,-4148.997,0.00014931,2]
[326836720,1715491839535,-1387.606,0.00014931,2]
[326836721,1715491839546,-975.97,0.00014931,2]
[326836722,1715491839555,-28508.95716054,0.00014931,2]
[326836723,1715491839586,-275.88474901,0.00014931,2]
[326836724,1715491839599,-942.96050353,0.00014931,2]
[326836745,1715491841866,-3437.88392862,0.00014552,2]
[326836746,1715491841892,-2500.0,0.00014552,2]
[326836747,1715491842531,-281.10218672,0.00014552,2]
[326836748,1715491842543,-589.32500011,0.00014552,2]
[326836749,1715491842555,-733.881,0.00014552,2]
[326836750,1715491842585,-2457.80788455,0.00014552,2]
[326836751,1715491842595,-8103.19758692,0.00014931,2]
[326836752,1715491842605,-1043.2925227,0.00014931,2]
[326836753,1715491842617,-419.7074773,0.00014931,2]
[326836754,1715491842626,-562.3417169,0.0001499,2]
[326836755,1715491842658,-2940.96388949,0.0001499,2]
[326836756,1715491842670,-11.63567741,0.0001499,2]
[326836757,1715491842681,-282.29275254,0.00015,2]
[326836758,1715491842690,-3000.0,0.00015,2]
[326836759,1715491842699,-485.0,0.00015,2]
[326836760,1715491842709,-618.61889928,0.00015,2]
[326836761,1715491842718,-14029.31213312,0.00015,2]
[326836762,1715491842728,-1073.0,0.00015,2]
[326836763,1715491842738,-4183.80192133,0.00015,2]
[326836764,1715491842750,-1824.19807867,0.00015,2]
[326836765,1715491842760,-150.0,0.00015008,2]
[326836766,1715491842769,-1000.0,0.00015044,2]
[326836767,1715491843083,-17.52645105,0.00015107,2]
[326836768,1715491843095,-598.01888095,0.00015107,2]
[326836769,1715491843105,-25.24378013,0.00015107,2]
[326836776,1715491843618,-1321.85663462,0.00012999,2]
[326836777,1715491843628,-38.34946385,0.00014552,2]
[326836778,1715491843771,-9961.65053615,0.00014552,2]
[326836779,1715491843781,-1064.139,0.00014931,2]
[326836780,1715491843790,-531.25910387,0.00015107,2]
[326836781,1715491843800,-191.873102,0.00015107,2]
[326836782,1715491843809,-169.61170162,0.00015129,2]
[326836783,1715491843818,-156.9171886,0.0001522,2]
[326836784,1715491843827,-268.86496,0.00015342,2]
[326836785,1715491843837,-202.23,0.00015363,2]
[326836786,1715491843846,-5057.2378292,0.00015435,2]
[326836787,1715491843856,-5607.8402607,0.00015435,2]
[326836788,1715491843868,-1172.6329343,0.00015435,2]
[326836789,1715491843877,-9150.17278152,0.00015445,2]
[326836790,1715491843886,-150.0,0.00015563,2]
[326836791,1715491843895,-299.667,0.0001563,2]
[326836792,1715491843904,-280.87092008,0.0001566,2]
[326836793,1715491843914,-156.28995828,0.00015683,2]
[326836794,1715491843925,-8000.0,0.0001589,2]
[326836795,1715491843935,-3000.0,0.00016,3]
[326836796,1715491843946,-2641.901042,0.00016071,2]
[326836797,1715491843957,-9150.17278152,0.00016082,2]
[326836798,1715491843967,-150.0,0.00016118,2]
[326836799,1715491843977,-268.86496,0.00016164,2]
[326836800,1715491843986,-155.19297909,0.00016183,2]
[326836801,1715491843995,-200.0,0.00016438,2]
[326836802,1715491844005,-163.73,0.00016439,2]
[326836803,1715491844015,-1226.52130354,0.000165,2]
[326836804,1715491844027,-280.87092008,0.00016583,2]
[326836805,1715491844038,-150.0,0.00016672,2]
[326836806,1715491844049,-1000.0,0.00016715,2]
[326836807,1715491844059,-9150.17278152,0.00016718,2]
[326836808,1715491844069,-159.21811402,0.0001674,2]
[326836809,1715491844078,-156.9171886,0.00016778,2]
[326836810,1715491844089,-156.28995828,0.00016798,2]
[326836811,1715491844100,-156.28995828,0.00016882,2]
[326836812,1715491844111,-268.86496,0.00016986,2]
[326836813,1715491844120,-3000.0,0.00017,3]
[326836814,1715491844129,-150.0,0.00017227,2]
[326836815,1715491844138,-6896.78232895,0.00017355,2]
[326836816,1715491844151,-2253.39045257,0.00017355,2]
[326836817,1715491844160,-156.9171886,0.00017388,2]
[326836818,1715491844170,-280.87092008,0.00017506,2]
[326836819,1715491844180,-152.93823868,0.00017737,2]
[326836820,1715491844190,-107.40420123,0.00017781,2]
[326836821,1715491844202,-42.59579877,0.00017781,2]
[326836822,1715491844211,-268.86496,0.00017808,2]
[326836823,1715491844221,-186.91224836,0.0001788,2]
[326836824,1715491844231,-618.61533457,0.0001788,2]
[326836825,1715491844239,-618.61533448,0.0001788,2]
[326836827,1715491844250,-618.61533448,0.0001788,2]
[326836828,1715491844260,-618.61533448,0.0001788,2]
[326836829,1715491844270,-618.61533448,0.0001788,2]
[326836830,1715491844279,-618.61533448,0.0001788,2]
[326836831,1715491844290,-618.61533448,0.0001788,2]
[326836832,1715491844299,-3386.0275654,0.00017918,2]
[326836833,1715491844309,-689.82148394,0.00017918,2]
[326836834,1715491844321,-1965.80447952,0.00017918,2]
[326836835,1715491844351,-432.16,0.00014552,2]
[326836836,1715491865174,423.74285489,0.0001,2]
[326836837,1715491938178,167.58800482,6.85e-05,2]
[326836838,1715491938325,159.90810928,6.852e-05,2]
[326836839,1715491938684,161.66815985,9.081e-05,2]
[326836840,1715491942340,156.9171886,8.483e-05,2]
[326836841,1715491943006,156.9171886,9.421e-05,2]
[326836842,1715491944147,156.28995828,6.015e-05,2]
[326836843,1715491944368,156.28995828,6.579e-05,2]
[326836844,1715491944883,156.79161733,8.36e-05,2]
[326836845,1715491947549,155.19297909,9.082e-05,2]
[326836846,1715491948763,170.94541903,9.726e-05,2]
[326836847,1715492123217,109574.02931713,0.00021,30]
[326836848,1715492237027,159.90810929,0.0001061,2]
[326836849,1715492237328,167.58800482,7.712e-05,2]
[326836850,1715492237934,156.9171886,7.636e-05,2]
[326836851,1715492238549,156.28995828,6.423e-05,2]
[326836852,1715492238608,156.9171886,8.323e-05,2]
[326836853,1715492245662,138.63667792,8.452e-05,2]
[326836854,1715492245686,32.30874111,8.452e-05,2]
[326836855,1715492248167,158.06837566,7.684e-05,2]
[326836856,1715492251528,68.13144879,0.00010023,2]
[326836857,1715492428630,-84.8067899,0.00010023,2]
[326836858,1715492428651,-1247.1869,0.00011997,2]
[326836859,1715492460406,-235.40355057,0.00012097,2]
[326836860,1715492461017,-235.40355057,0.00012097,2]
[326836861,1715492461764,-235.40355057,0.00012097,2]
[326836862,1715492467558,-4000.0,0.00012097,2]
[326836863,1715492467749,-4000.0,0.00012097,2]
[326836864,1715492468654,-4000.0,0.00012097,2]
[326836865,1715492469207,-4000.0,0.00012097,2]
[326836866,1715492469643,-4000.0,0.00012097,2]
[326836867,1715492470056,-4000.0,0.00012097,2]
[326836868,1715492470427,-4000.0,0.00012097,2]
[326836869,1715492470799,-4000.0,0.00012097,2]
[326836870,1715492471137,-4000.0,0.00012097,2]
[326836871,1715492471527,-4000.0,0.00012097,2]
[326836872,1715492472110,-4000.0,0.00012097,2]
[326836873,1715492473068,-4000.0,0.00012097,2]
[326836874,1715492473693,-4000.0,0.00012097,2]
[326836875,1715492474109,-4000.0,0.00012097,2]
[326836876,1715492474904,-4000.0,0.00012097,2]
[326836877,1715492475730,-4000.0,0.00012097,2]
[326836878,1715492476835,-4000.0,0.00012097,2]
[326836879,1715492479868,-4000.0,0.00012097,2]
[326836880,1715492492155,-4000.0,0.00012097,2]
[326836881,1715492492760,-4000.0,0.00012097,2]
[326836882,1715492493546,-4000.0,0.00012097,2]
[326836883,1715492494411,-4000.0,0.00012097,2]
[326836884,1715492495365,-4000.0,0.00012097,2]
[326836885,1715492514087,-4000.0,0.00012097,2]
[326836886,1715492514621,-4000.0,0.00012097,2]
[326836887,1715492528526,-150.0,0.00012096,2]
[326836888,1715492528548,-3850.0,0.00012097,2]
[326836889,1715492534321,-2000.0,0.00012097,2]
[326836890,1715492537770,167.58800482,6.981e-05,2]
[326836891,1715492537845,156.28995828,8.516e-05,2]
[326836892,1715492538233,167.58800482,7.167e-05,2]
[326836893,1715492539048,167.58800482,8.028e-05,2]
[326836894,1715492546189,156.9171886,4.336e-05,2]
[326836895,1715492546705,156.9171886,7.467e-05,2]
[326836896,1715492547219,156.9171886,7.554e-05,2]
[326836898,1715492837217,-1204.76205397,0.00010478,2]
[326836899,1715492837239,-235.40355057,0.00010479,2]
[326836900,1715492837260,-1146.62652767,0.00010578,2]
[326836901,1715492837281,-206.82803532,0.0001058,2]
[326836902,1715492838804,156.28995828,5.353e-05,2]
[326836903,1715492840750,156.9171886,6.78e-05,2]
[326836908,1715492960096,-155.0,0.00010577,2]
[326836909,1715492960116,-1244.2402654,0.00010578,2]
[326836910,1715492960137,-359.33436768,0.0001058,2]
[326836911,1715492960157,-22815.20345108,0.00010581,2]
[326836912,1715492960177,-21681.95491584,0.00010582,2]
[326836921,1715493031640,-540.45459162,0.00010581,2]
[326836922,1715493031649,-1516.42630692,0.00010582,2]
[326836923,1715493031658,-268.67,0.00010959,2]
[326836924,1715493031667,-159.21811402,0.00011083,2]
[326836925,1715493031676,-701.17245417,0.00011487,2]
[326836926,1715493031687,-298.82754583,0.00011487,2]
[326836927,1715493031696,-250.0,0.00011489,2]
[326836928,1715493031705,-60.85245415,0.00011525,2]
[326836929,1715493031826,-1492.99751267,0.00011525,2]
[326836930,1715493031839,-630.10225962,0.00011525,2]
[326836931,1715493032200,-2829.96941161,0.00011525,2]
[326836932,1715493032211,-792.5901174,0.00011525,2]
[326836941,1715493037704,-18005.19824455,0.00011525,2]
[326836942,1715493037714,-167.58800483,0.00011863,2]
[326836943,1715493037724,-330.1203,0.00011997,2]
[326836944,1715493037733,-266.73,0.00012037,2]
[326836945,1715493037742,-150.99,0.00012037,2]
[326836946,1715493037752,-196.48123609,0.00012086,2]
[326836947,1715493037761,-276.98,0.00012086,2]
[326836948,1715493037770,-276.98,0.00012086,2]
[326836949,1715493037779,-276.98,0.00012087,2]
[326836950,1715493037789,-317.63013013,0.00012094,2]
[326836951,1715493037798,-155.0,0.00012094,2]
[326836952,1715493037808,-537.03498854,0.00012094,2]
[326836953,1715493037817,-209.43798206,0.00012095,2]
[326836954,1715493037827,-15974.9895202,0.00012095,2]
[326836955,1715493037837,-633.53029662,0.00012095,2]
[326836956,1715493037847,-1301.96489797,0.00012095,3]
[326836957,1715493037856,-589448.77864107,0.00012096,2]
[326836958,1715493037865,-138443.78934829,0.00012097,2]
[326836959,1715493037875,-15953.15331276,0.00012097,2]
[326836960,1715493037884,-160.51942902,0.00012125,2]
[326836961,1715493037894,-499.99,0.00012125,2]
[326836962,1715493037904,-566.83,0.00012223,2]
[326836963,1715493037913,-500.0,0.000124,4]
[326836964,1715493037923,-1000.0,0.000125,4]
[326836965,1715493037932,-165.76896419,0.00012551,2]
[326836966,1715493037942,-276.98,0.0001257,2]
[326836967,1715493037951,-153868.04191493,0.0001258,2]
[326836968,1715493037961,-1600.0,0.000126,4]
[326836969,1715493037970,-2100.0,0.000127,4]
[326836970,1715493037979,-158.44069888,0.0001278,2]
[326836971,1715493037989,-2700.0,0.000128,4]
[326836972,1715493037998,-3418.5130709,0.00012866,2]
[326836973,1715493038008,-276.98,0.0001287,2]
[326836974,1715493038017,-276.98,0.0001287,2]
[326836975,1715493038027,-427.79115464,0.00012872,2]
[326836976,1715493038036,-319.39260741,0.00012877,2]
[326836977,1715493038046,-155.79798778,0.00012877,2]
[326836978,1715493038056,-5268.69051153,0.00012877,2]
[326836979,1715493038066,-306.03989459,0.00012877,2]
[326836980,1715493038076,-1254.98401423,0.00012877,2]
[326836981,1715493038085,-157.45369274,0.00012877,2]
[326836982,1715493038095,-239.13785843,0.00012877,2]
[326836983,1715493038105,-10454.07635838,0.00012877,2]
[326836984,1715493038114,-212.87445786,0.00012877,2]
[326836985,1715493038124,-414.05733464,0.00012877,2]
[326836986,1715493038135,-246.25874054,0.00012877,2]
[326836987,1715493038144,-175.75116173,0.00012877,2]
[326836988,1715493038154,-159.26472553,0.00012877,2]
[326836989,1715493038163,-193.4563077,0.00012877,2]
[326836990,1715493038173,-156.40126213,0.00012877,2]
[326836991,1715493038183,-1224.08334461,0.00012877,2]
[326836992,1715493038193,-257.85125369,0.00012877,2]
[326836993,1715493038202,-268.20527789,0.00012877,2]
[326836994,1715493038211,-2793.37443521,0.00012877,2]
[326836995,1715493038221,-1344.0657478,0.00012877,2]
[326836996,1715493038230,-158.45591692,0.00012877,2]
[326836997,1715493038239,-210.46600037,0.00012877,2]
[326836998,1715493038248,-474.78852769,0.00012877,2]
[326836999,1715493038263,-216.97621547,0.00012877,2]
[326837000,1715493038275,-155.0,0.00012877,2]
[326837001,1715493038285,-402.78359363,0.00012877,2]
[326837002,1715493038294,-155.34432872,0.00012877,2]
[326837003,1715493038304,-49384.72358191,0.00012878,2]
[326837004,1715493038313,-3005.88174248,0.00012878,2]
[326837005,1715493038323,-3400.0,0.00012878,2]
[326837006,1715493038332,-488.3397664,0.00012878,2]
[326837007,1715493038342,-525.53925572,0.00012878,2]
[326837008,1715493038352,-275.05268019,0.00012878,2]
[326837009,1715493038361,-160.94475633,0.00012878,2]
[326837010,1715493038371,-1258.44548734,0.00012878,2]
[326837011,1715493038380,-9635.73622343,0.00012878,2]
[326837012,1715493038389,-158.42386762,0.00012878,2]
[326837013,1715493038398,-155.43071651,0.00012878,2]
[326837014,1715493038409,-156.38443489,0.00012878,2]
[326837015,1715493038423,-155.57858742,0.00012878,2]
[326837016,1715493038432,-4736.57913706,0.00012878,2]
[326837017,1715493038443,-320.98051678,0.00012878,2]
[326837018,1715493038453,-266.15160659,0.00012878,2]
[326837019,1715493038463,-285575.6634553,0.0001288,2]
[326837020,1715493038473,-276.98,0.0001289,2]
[326837021,1715493038483,-276.98,0.0001289,2]
[326837022,1715493038495,-276.98,0.0001289,2]
[326837023,1715493038504,-276.98,0.0001289,2]
[326837024,1715493038513,-8199.87584541,0.000129,2]
[326837025,1715493038522,-169.14327644,0.000129,2]
[326837026,1715493038532,-7500.0,0.000129,2]
[326837027,1715493038542,-500.0,0.000129,4]
[326837028,1715493038551,-869362.4078,0.000129,2]
[326837029,1715493038560,-185.33165285,0.000129,2]
[326837030,1715493038569,-245.76205511,0.000129,2]
[326837031,1715493038579,-1000.0,0.00012923,2]
[326837032,1715493038588,-196.48123609,0.0001299,2]
[326837033,1715493038599,-152.38,0.0001299,2]
[326837034,1715493038608,-152.38,0.0001299,2]
[326837035,1715493038617,-10941.2057192,0.00012991,2]
[326837036,1715493038626,-9044.6955164,0.00012991,2]
[326837037,1715493038635,-7148.1853135,0.00012991,2]
[326837038,1715493038644,-5251.6751107,0.00012991,2]
[326837039,1715493038654,-3355.1649079,0.00012991,2]
[326837040,1715493038663,-3302.2991466,0.00012991,2]
[326837041,1715493038672,-2732.6434869,0.00012991,2]
[326837042,1715493038682,-2162.9878272,0.00012991,2]
[326837043,1715493038691,-1593.3321674,0.00012991,2]
[326837044,1715493038700,-1023.6765077,0.00012991,2]
[326837045,1715493038709,-734.5601256,0.00012991,2]
[326837046,1715493038719,-607.8464893,0.00012991,2]
[326837047,1715493038728,-481.132853,0.00012991,2]
[326837048,1715493038737,-354.4192167,0.00012991,2]
[326837049,1715493038746,-227.7055805,0.00012991,2]
[326837050,1715493038755,-41745.7020343,0.00012991,2]
[326837051,1715493038765,-34544.4539412,0.00012991,2]
[326837052,1715493038773,-27343.2058481,0.00012991,2]
[326837053,1715493038783,-20141.957755,0.00012991,2]
[326837054,1715493038792,-12940.7096619,0.00012991,2]
[326837055,1715493038801,-310.5913765,0.00012991,2]
[326837056,1715493038810,-310.5913765,0.00012991,2]
[326837057,1715493038819,-310.5913765,0.00012991,2]
[326837058,1715493038828,-310.5913765,0.00012991,2]
[326837059,1715493038838,-310.5913765,0.00012991,2]
[326837060,1715493038847,-196.66246988,0.00012998,2]
[326837061,1715493038856,-230807.73267876,0.00013,2]
[326837070,1715493039932,-1023570.00396551,0.00013,2]
[326837071,1715493040690,-691.61743874,0.000129,2]
[326837072,1715493040699,-2145.70658812,0.00013,2]
[326837073,1715493040876,-11892.52491399,0.00013,2]
[326837079,1715493043214,-262.78286527,0.00012869,2]
[326837080,1715493043224,-80640.26368693,0.00013,2]
[326837081,1715493043261,-1620.87313189,0.00013,2]
[326837082,1715493043272,-1912.01650934,0.00013,2]
[326837083,1715493043305,-298.72,0.00013,2]
[326837085,1715493045950,-711.88036721,0.00012999,2]
[326837086,1715493045959,-373.0807841,0.00012999,2]
[326837087,1715493045968,-642.75426477,0.00012999,2]
[326837088,1715493045977,-20765.73628393,0.00013,2]
[326837089,1715493045988,-993.06454,0.00013,2]
[326837090,1715493045999,-774.68725396,0.00013,2]
[326837093,1715493443527,176.81497736,4.559e-05,2]
[326837094,1715493450676,156.9171886,7.413e-05,2]
[326837095,1715493483031,7513.22628068,7.413e-05,2]
[326837097,1715493484654,2546.01274619,5.56e-05,2]
[326837098,1715493485982,546.87748124,5.93e-05,2]
[326837099,1715493489403,400.01138738,7.413e-05,2]
[326837100,1715493491136,289.01685451,7.413e-05,2]
[326837101,1715493491872,361.90993658,7.413e-05,2]
[326837102,1715493495668,6566.20046204,7.413e-05,2]
[326837103,1715493495692,13640.14563887,7.413e-05,2]
[326837104,1715493497897,91471.40659203,7.413e-05,2]
[326837105,1715493500662,240.0942125,5.56e-05,2]
[326837106,1715493500686,2305.91853369,5.56e-05,2]
[326837107,1715493501030,7513.22628068,7.413e-05,2]
[326837108,1715493501377,400.01138738,7.413e-05,2]
[326837109,1715493502166,366.46658837,7.413e-05,2]
[326837110,1715493504523,361.75590004,7.413e-05,2]
[326837111,1715493505183,288.89583829,7.413e-05,2]
[326837112,1715493505857,1075.82397744,7.413e-05,2]
[326837113,1715493506917,546.87748124,5.93e-05,2]
[326837114,1715493511597,20206.34610091,7.413e-05,2]
[326837115,1715493513870,240.0942125,7.413e-05,2]
[326837116,1715493515714,200.63003131,8.588e-05,2]
[326837117,1715493518303,366.46658837,7.413e-05,2]
[326837118,1715493521981,546.87748124,5.93e-05,2]
[326837119,1715493522695,2546.01274619,5.56e-05,2]
[326837120,1715493523015,7513.22628068,7.413e-05,2]
[326837121,1715493523374,400.03316961,7.413e-05,2]
[326837122,1715493523874,1075.82397744,7.413e-05,2]
[326837123,1715493531611,20206.34610091,7.413e-05,2]
[326837124,1715493533885,499777.24994924,7.413e-05,2]
[326837125,1715493536894,284.14413449,7.413e-05,2]
[326837126,1715493537989,545.60789477,5.93e-05,2]
[326837127,1715493541853,560.50429225,7.413e-05,2]
[326837128,1715493543325,3827.74202259,7.413e-05,2]
[326837129,1715493544678,2546.01274619,5.56e-05,2]
[326837130,1715493545608,20206.34610091,7.413e-05,2]
[326837131,1715493559878,560.50429225,7.413e-05,2]
[326837132,1715493562676,882.23630392,5.56e-05,2]
[326837133,1715493565622,38783.77370616,7.413e-05,2]
[326837134,1715493577859,560.50429225,7.413e-05,2]
[326837135,1715493583991,72799.16856479,7.413e-05,2]
[326837136,1715493584039,547.3843104,5.93e-05,2]
[326837137,1715493585635,20206.34610091,7.413e-05,2]
[326837138,1715493587814,19715.45682378,7.413e-05,2]
[326837139,1715493589397,400.38485774,7.413e-05,2]
[326837140,1715493595868,560.50429225,7.413e-05,2]
[326837141,1715493603088,150.0,7.413e-05,2]
[326837142,1715493603148,282.62961632,7.413e-05,2]
[326837143,1715493603763,4668.5455913,7.413e-05,2]
[326837144,1715493612200,20206.34610091,7.413e-05,2]
[326837145,1715493612286,560.50429225,7.413e-05,2]
[326837146,1715493628748,300.0,5.56e-05,2]
[326837147,1715493633846,20206.34610091,7.413e-05,2]
[326837148,1715493634501,560.50429225,7.413e-05,2]
[326837149,1715493635047,5912.89428964,7.413e-05,2]
[326837150,1715493649614,20206.34610091,7.413e-05,2]
[326837151,1715493657876,560.50429225,7.413e-05,2]
[326837152,1715493669738,20206.34610091,7.413e-05,2]
[326837153,1715493679890,560.50429225,7.413e-05,2]
[326837154,1715493685628,20206.34610091,7.413e-05,2]
[326837155,1715493698557,560.50429225,7.413e-05,2]
[326837156,1715493703623,20206.34610091,7.413e-05,2]
[326837157,1715493715877,560.50429225,7.413e-05,2]
[326837158,1715493719798,20206.34610091,7.413e-05,2]
[326837160,1715493731895,560.50429225,7.413e-05,2]
[326837163,1715493737950,167.58800484,7.921e-05,2]
[326837164,1715493739620,20206.34610091,7.413e-05,2]
[326837165,1715493743420,156.91718861,4.867e-05,2]
[326837166,1715493747877,558.4939399,7.413e-05,2]
[326837168,1715493763685,20206.34610091,5e-05,2]
[326837169,1715493781633,20206.34610091,5e-05,2]
[326837170,1715493799643,1233.16392325,5e-05,2]
[326837173,1715493948142,170.46,7.494e-05,2]
[326837174,1715494037140,-157.60689553,9.268e-05,2]
[326837175,1715494037161,-147.46584302,9.269e-05,2]
[326837176,1715494059955,64050.39203845,7.494e-05,2]
[326837179,1715494145120,-1271.62688925,7.489e-05,2]
[326837180,1715494145144,-2360.54611263,7.489e-05,2]
[326837181,1715494145166,-150.0,7.489e-05,2]
[326837182,1715494145208,-130.80229812,7.489e-05,2]
[326837183,1715494150082,-19.19770188,7.489e-05,2]
[326837184,1715494150103,-2365.15239822,7.49e-05,2]
[326837185,1715494150128,-22815.20345108,7.49e-05,2]
[326837186,1715494150148,-2220.53511034,7.491e-05,2]
[326837187,1715494150168,-2184.52280122,7.491e-05,2]
[326837188,1715494150188,-155.0,7.491e-05,2]
[326837189,1715494150209,-155.0,7.491e-05,2]
[326837190,1715494150229,-377.72952639,7.492e-05,2]
[326837191,1715494150250,-237.2941111,7.492e-05,2]
[326837192,1715494150271,-155.0,7.492e-05,2]
[326837193,1715494150292,-5648.80525062,7.492e-05,2]
[326837194,1715494150314,-11655.75864915,7.494e-05,2]
[326837195,1715494150662,-2739.9418,7.494e-05,2]
[326837196,1715494154124,-14285.22767213,7.494e-05,2]
[326837197,1715494154144,-2283.304206,8.178e-05,2]
[326837198,1715494154167,-184.02,8.219e-05,2]
[326837199,1715494154190,-210.0,8.238e-05,2]
[326837200,1715494154210,-210.0,8.238e-05,2]
[326837201,1715494154231,-184.02,9.166e-05,2]
[326837202,1715494154251,-5130.1,9.199e-05,2]
[326837203,1715494154270,-10305.37,9.231e-05,2]
[326837204,1715494154290,-1786.23,9.262e-05,2]
[326837205,1715494154309,-7.53415698,9.269e-05,2]
[326837206,1715494154329,-321.98637793,9.27e-05,2]
[326837207,1715494154348,-321.98637792,9.271e-05,2]
[326837208,1715494154367,-321.98637792,9.272e-05,2]
[326837209,1715494154391,-600.0,9.299e-05,2]
[326837210,1715494154411,-168.82,9.328e-05,2]
[326837211,1715494154431,-200.0,9.355e-05,2]
[326837212,1715494154451,-594.62,9.374e-05,2]
[326837213,1715494154472,-1431.18,9.376e-05,2]
[326837214,1715494154493,-23900.0,9.392e-05,2]
[326837215,1715494154515,-250.0,9.397e-05,2]
[326837216,1715494154535,-153.42,9.41e-05,2]
[326837217,1715494154555,-250.0,9.41e-05,2]
[326837218,1715494154852,-9675.42,9.429e-05,2]
[326837219,1715494154874,-950.57,9.431e-05,2]
[326837220,1715494154895,-1101.2823,9.641e-05,2]
[326837221,1715494154915,-224.99,9.67e-05,2]
[326837222,1715494154936,-499.99,9.738e-05,2]
[326837223,1715494154958,-2019.38,9.89e-05,2]
[326837224,1715494154979,-2019.38,9.893e-05,2]
[326837225,1715494155001,-2019.38,9.895e-05,2]
[326837226,1715494155023,-2019.38,9.898e-05,2]
[326837227,1715494155042,-2019.38,9.9e-05,2]
[326837228,1715494155062,-2019.38,9.903e-05,2]
[326837229,1715494155081,-2019.38,9.906e-05,2]
[326837230,1715494155102,-2019.38,9.908e-05,2]
[326837231,1715494155124,-2019.38,9.911e-05,2]
[326837232,1715494155144,-2019.38,9.913e-05,2]
[326837233,1715494155165,-2019.38,9.916e-05,2]
[326837234,1715494155185,-2019.38,9.919e-05,2]
[326837235,1715494155205,-2019.38,9.921e-05,2]
[326837236,1715494155225,-2019.38,9.924e-05,2]
[326837237,1715494155245,-2019.38,9.926e-05,2]
[326837238,1715494155266,-2019.38,9.929e-05,2]
[326837239,1715494155287,-2019.38,9.932e-05,2]
[326837240,1715494155307,-2019.38,9.934e-05,2]
[326837241,1715494155328,-2019.38,9.937e-05,2]
[326837242,1715494155348,-2019.38,9.939e-05,2]
[326837243,1715494155371,-548.23639354,0.0001,2]
[326837244,1715494155392,-298.56741175,0.0001,2]
[326837245,1715494155412,-409.41809319,0.0001,2]
[326837246,1715494155432,-180.17241562,0.0001,2]
[326837247,1715494155454,-179.42,0.0001005,2]
[326837248,1715494155474,-184.02,0.00010112,2]
[326837249,1715494155494,-89.87118714,0.00010185,2]
[326837265,1715494231870,-369.95948262,7.493e-05,2]
[326837266,1715494231882,-352.00770292,7.493e-05,2]
[326837267,1715494231891,-115.49229708,7.494e-05,2]
[326837268,1715494231924,-875.52271808,7.494e-05,2]
[326837269,1715494231935,-344.1262584,7.494e-05,2]
[326837270,1715494231946,-1299.4208445,7.494e-05,2]
[326837271,1715494232099,-600.0,7.494e-05,2]
[326837272,1715494232111,-1000.0,7.494e-05,2]
[326837273,1715494232123,-450.0,7.494e-05,2]
[326837274,1715494232168,-469.82778,7.494e-05,2]
[326837294,1715494238021,-29174.15400827,7.494e-05,2]
[326837295,1715494238057,-58831.16587173,7.494e-05,2]
[326837296,1715494238066,-551.38303283,0.00010185,2]
[326837297,1715494238075,-300.0,0.00010185,2]
[326837298,1715494238086,-409.41809319,0.00010185,2]
[326837299,1715494238095,-600.0,0.00010461,2]
[326837300,1715494238105,-2849.99,0.00010846,2]